[Event "*** Titled Tuesday 3|2 Blitz"]
[Site "Chess.com"]
[Date "2016.09.06"]
[Round "1"]
[White "pedromartinez91"]
[Black "metalbattler"]
[Result "1-0"]
[WhiteElo "2377"]
[BlackElo "2003"]
[TimeControl "180+2"]
[EndTime "17:12:40 PDT"]
[Termination "pedromartinez91 won on time"]

1. e4 {[%clk 0:02:56]} 1... d5 {[%clk 0:03:01]} 2. exd5 {[%clk 0:02:55.5]} 2...
Nf6 {[%clk 0:03:02.5]} 3. c4 {[%clk 0:02:55.8]} 3... c6 {[%clk 0:03:02.6]} 4. d4
{[%clk 0:02:56.5]} 4... cxd5 {[%clk 0:03:01.9]} 5. Nc3 {[%clk 0:02:57.5]} 5...
e6 {[%clk 0:03:03.3]} 6. Nf3 {[%clk 0:02:57.9]} 6... Bb4 {[%clk 0:03:02.2]} 7.
Bd3 {[%clk 0:02:58]} 7... dxc4 {[%clk 0:02:59.7]} 8. Bxc4 {[%clk 0:02:58.2]}
8... O-O {[%clk 0:03:01.3]} 9. O-O {[%clk 0:02:57.6]} 9... b6 {[%clk 0:02:59.2]}
10. Bg5 {[%clk 0:02:55.9]} 10... Bb7 {[%clk 0:02:52]} 11. Ne5 {[%clk 0:02:55.8]}
11... Bxc3 {[%clk 0:02:52]} 12. bxc3 {[%clk 0:02:54.4]} 12... Qc7 {[%clk
0:02:52.9]} 13. Bd3 {[%clk 0:02:44.4]} 13... Nbd7 {[%clk 0:02:51.9]} 14. Nxd7
{[%clk 0:02:31.3]} 14... Nxd7 {[%clk 0:02:50.2]} 15. Qd2 {[%clk 0:02:10.9]}
15... Rac8 {[%clk 0:02:48.1]} 16. Rfc1 {[%clk 0:02:09.4]} 16... Qc6 {[%clk
0:02:40]} 17. Bf1 {[%clk 0:02:02.2]} 17... Qe4 {[%clk 0:02:37.5]} 18. a4 {[%clk
0:01:57.4]} 18... Qf5 {[%clk 0:02:28.7]} 19. a5 {[%clk 0:01:51.9]} 19... bxa5
{[%clk 0:02:26.4]} 20. Rcb1 {[%clk 0:01:46.9]} 20... Be4 {[%clk 0:02:20.9]} 21.
Rb5 {[%clk 0:01:45.2]} 21... Qg6 {[%clk 0:02:13.3]} 22. Rbxa5 {[%clk 0:01:45.5]}
22... Rc7 {[%clk 0:02:08.7]} 23. Rxa7 {[%clk 0:01:43.5]} 23... Rxa7 {[%clk
0:02:07.9]} 24. Rxa7 {[%clk 0:01:45]} 24... Nb6 {[%clk 0:02:07.3]} 25. c4 {[%clk
0:01:42.5]} 25... h6 {[%clk 0:02:03.7]} 26. Be7 {[%clk 0:01:37.8]} 26... Rc8
{[%clk 0:01:54.4]} 27. Bc5 {[%clk 0:01:36.6]} 27... Nxc4 {[%clk 0:01:53.3]} 28.
Qf4 {[%clk 0:01:10.5]} 28... Nb2 {[%clk 0:01:46.7]} 29. Qg3 {[%clk 0:00:53.4]}
29... Qxg3 {[%clk 0:01:32.1]} 30. hxg3 {[%clk 0:00:52.2]} 30... Nd3 {[%clk
0:01:32.2]} 31. f3 {[%clk 0:00:36.6]} 31... Nxc5 {[%clk 0:01:28.4]} 32. dxc5
{[%clk 0:00:34.3]} 32... Bd5 {[%clk 0:01:29]} 33. Ra5 {[%clk 0:00:32.9]} 33...
Kf8 {[%clk 0:01:29.1]} 34. Kf2 {[%clk 0:00:33.5]} 34... Ke7 {[%clk 0:01:25.6]}
35. Ke3 {[%clk 0:00:30.1]} 35... e5 {[%clk 0:01:16]} 36. c6 {[%clk 0:00:24.3]}
36... Kd6 {[%clk 0:01:10.3]} 37. Bb5 {[%clk 0:00:24.2]} 37... Bxc6 {[%clk
0:01:07.3]} 38. Ra6 {[%clk 0:00:21.5]} 38... Kc5 {[%clk 0:00:52.9]} 39. Bxc6
{[%clk 0:00:21.6]} 39... Rxc6 {[%clk 0:00:54.8]} 40. Ra7 {[%clk 0:00:22.7]}
40... Rf6 {[%clk 0:00:56.2]} 41. Ke4 {[%clk 0:00:23.2]} 41... Kb6 {[%clk
0:00:52.7]} 42. Re7 {[%clk 0:00:22.7]} 42... Kc6 {[%clk 0:00:45.1]} 43. Rxe5
{[%clk 0:00:23.1]} 43... Kd6 {[%clk 0:00:43.4]} 44. Rd5+ {[%clk 0:00:23.4]}
44... Ke6 {[%clk 0:00:44]} 45. Ra5 {[%clk 0:00:23.9]} 45... Ke7 {[%clk
0:00:38.2]} 46. Ra7+ {[%clk 0:00:22.4]} 46... Kf8 {[%clk 0:00:38.9]} 47. g4
{[%clk 0:00:22.3]} 47... Re6+ {[%clk 0:00:38.7]} 48. Kf4 {[%clk 0:00:23.4]}
48... g6 {[%clk 0:00:39.5]} 49. Ra5 {[%clk 0:00:23]} 49... Kg7 {[%clk
0:00:39.8]} 50. Kg3 {[%clk 0:00:23.9]} 50... Rc6 {[%clk 0:00:39.1]} 51. Rd5
{[%clk 0:00:23.7]} 51... Rb6 {[%clk 0:00:39.6]} 52. Rd7 {[%clk 0:00:24.1]} 52...
Rb5 {[%clk 0:00:39.7]} 53. Rd4 {[%clk 0:00:24.4]} 53... Ra5 {[%clk 0:00:40.5]}
54. Re4 {[%clk 0:00:25.3]} 54... Rb5 {[%clk 0:00:41.6]} 55. Kf4 {[%clk
0:00:26.5]} 55... Ra5 {[%clk 0:00:41.8]} 56. Re5 {[%clk 0:00:26.7]} 56... Ra4+
{[%clk 0:00:39.3]} 57. Ke3 {[%clk 0:00:27]} 57... Rb4 {[%clk 0:00:37.3]} 58. g3
{[%clk 0:00:27]} 58... Ra4 {[%clk 0:00:37.9]} 59. Re4 {[%clk 0:00:27.9]} 59...
Ra5 {[%clk 0:00:38.5]} 60. Kf4 {[%clk 0:00:28.9]} 60... Rb5 {[%clk 0:00:39.2]}
61. Rc4 {[%clk 0:00:29.6]} 61... Ra5 {[%clk 0:00:40.1]} 62. Ke4 {[%clk
0:00:30.6]} 62... Rb5 {[%clk 0:00:40.7]} 63. Ra4 {[%clk 0:00:30.3]} 63... Rc5
{[%clk 0:00:41.6]} 64. Kd4 {[%clk 0:00:31.4]} 64... Rb5 {[%clk 0:00:41]} 65. Ra3
{[%clk 0:00:30.6]} 65... Rb1 {[%clk 0:00:38.5]} 66. f4 {[%clk 0:00:30.5]} 66...
Re1 {[%clk 0:00:37.4]} 67. Re3 {[%clk 0:00:30]} 67... Rg1 {[%clk 0:00:34.7]} 68.
Ke4 {[%clk 0:00:30.8]} 68... Kf6 {[%clk 0:00:34.5]} 69. Ra3 {[%clk 0:00:29.5]}
69... Kg7 {[%clk 0:00:30.8]} 70. f5 {[%clk 0:00:23.1]} 70... Re1+ {[%clk
0:00:26.3]} 71. Kf4 {[%clk 0:00:20.8]} 71... Rf1+ {[%clk 0:00:26]} 72. Ke4
{[%clk 0:00:21.6]} 72... Re1+ {[%clk 0:00:25.6]} 73. Kf4 {[%clk 0:00:22.2]}
73... Rf1+ {[%clk 0:00:26.6]} 74. Rf3 {[%clk 0:00:22.7]} 74... Rxf3+ {[%clk
0:00:26.2]} 75. Kxf3 {[%clk 0:00:23.6]} 75... gxf5 {[%clk 0:00:24.8]} 76. gxf5
{[%clk 0:00:24.1]} 76... h5 {[%clk 0:00:22.2]} 77. Ke4 {[%clk 0:00:22.4]} 77...
Kf6 {[%clk 0:00:22.9]} 78. Kf4 {[%clk 0:00:23.3]} 78... Kg7 {[%clk 0:00:04]} 79.
Kg5 {[%clk 0:00:23.6]} 79... h4 {[%clk 0:00:03.8]} 80. Kxh4 {[%clk 0:00:15.9]}
1-0

[Event "*** Titled Tuesday 3|2 Blitz"]
[Site "Chess.com"]
[Date "2016.09.06"]
[Round "2"]
[White "Viaje"]
[Black "AllStarShark"]
[Result "0-1"]
[WhiteElo "2201"]
[BlackElo "2306"]
[TimeControl "180+2"]
[EndTime "17:16:55 PDT"]
[Termination "AllStarShark won by resignation"]

1. d4 {[%clk 0:03:01.9]} 1... d5 {[%clk 0:03:00.1]} 2. c4 {[%clk 0:03:03.3]}
2... dxc4 {[%clk 0:03:01.3]} 3. Nf3 {[%clk 0:03:02]} 3... Nf6 {[%clk 0:03:01.8]}
4. e3 {[%clk 0:03:03.6]} 4... Bg4 {[%clk 0:03:02.7]} 5. Bxc4 {[%clk 0:03:04.3]}
5... e6 {[%clk 0:03:04.2]} 6. h3 {[%clk 0:03:04]} 6... Bh5 {[%clk 0:03:04.6]} 7.
Nc3 {[%clk 0:03:03.2]} 7... Nc6 {[%clk 0:03:05.1]} 8. g4 {[%clk 0:02:48.7]} 8...
Bg6 {[%clk 0:03:04.4]} 9. Qe2 {[%clk 0:02:48.3]} 9... Bb4 {[%clk 0:02:57.7]} 10.
Bd2 {[%clk 0:02:47.6]} 10... Ne4 {[%clk 0:02:54]} 11. h4 {[%clk 0:02:39.1]}
11... Nxd2 {[%clk 0:02:45.6]} 12. Nxd2 {[%clk 0:02:38.6]} 12... h5 {[%clk
0:02:46.9]} 13. Bb3 {[%clk 0:02:19.3]} 13... hxg4 {[%clk 0:02:44.5]} 14. Qxg4
{[%clk 0:02:19.4]} 14... Qf6 {[%clk 0:02:36.3]} 15. O-O-O {[%clk 0:02:08.2]}
15... Bh5 {[%clk 0:02:33.3]} 16. Qg3 {[%clk 0:02:04.2]} 16... Bxc3 {[%clk
0:02:31.1]} 17. bxc3 {[%clk 0:02:00.2]} 17... Bxd1 {[%clk 0:02:30.7]} 18. Qxc7
{[%clk 0:01:50.7]} 18... Bxb3 {[%clk 0:02:11.5]} 19. Qxb7 {[%clk 0:01:44.3]}
19... O-O {[%clk 0:01:58.1]} 20. Qxc6 {[%clk 0:01:44.8]} 20... Bd5 {[%clk
0:01:58]} 0-1

[Event "*** Titled Tuesday 3|2 Blitz"]
[Site "Chess.com"]
[Date "2016.09.06"]
[Round "2"]
[White "jposthuma"]
[Black "WinnieTPooh"]
[Result "1-0"]
[WhiteElo "2175"]
[BlackElo "1850"]
[TimeControl "180+2"]
[EndTime "17:17:31 PDT"]
[Termination "jposthuma won by resignation"]

1. d4 {[%clk 0:02:52.5]} 1... Nf6 {[%clk 0:03:01]} 2. Nf3 {[%clk 0:02:52.8]}
2... e6 {[%clk 0:02:59.5]} 3. Bf4 {[%clk 0:02:53.1]} 3... c5 {[%clk 0:03:00.2]}
4. c3 {[%clk 0:02:53.8]} 4... b5 {[%clk 0:03:00.4]} 5. e3 {[%clk 0:02:50.8]}
5... a6 {[%clk 0:02:56.9]} 6. a4 {[%clk 0:02:49.8]} 6... b4 {[%clk 0:02:57.4]}
7. cxb4 {[%clk 0:02:40.9]} 7... cxb4 {[%clk 0:02:59.3]} 8. Nbd2 {[%clk
0:02:39.2]} 8... Bb7 {[%clk 0:02:52.7]} 9. Bd3 {[%clk 0:02:36]} 9... d5 {[%clk
0:02:53]} 10. O-O {[%clk 0:02:35.4]} 10... Bd6 {[%clk 0:02:53.8]} 11. Bxd6
{[%clk 0:02:32.2]} 11... Qxd6 {[%clk 0:02:54.9]} 12. Ne5 {[%clk 0:02:32.3]}
12... Nbd7 {[%clk 0:02:50.3]} 13. f4 {[%clk 0:02:32.7]} 13... O-O {[%clk
0:02:50.8]} 14. Rf3 {[%clk 0:02:25.9]} 14... Ne4 {[%clk 0:02:42.3]} 15. Rh3
{[%clk 0:02:07.2]} 15... f5 {[%clk 0:02:36.3]} 16. Bxe4 {[%clk 0:02:08.4]} 16...
dxe4 {[%clk 0:02:32.4]} 17. Ndc4 {[%clk 0:02:08.8]} 17... Qe7 {[%clk 0:02:32.1]}
18. Nxd7 {[%clk 0:02:09.8]} 18... Qxd7 {[%clk 0:02:33.2]} 19. Nb6 {[%clk
0:02:11.1]} 19... Qd6 {[%clk 0:02:26.8]} 20. Nxa8 {[%clk 0:02:10.6]} 20... Rxa8
{[%clk 0:02:28.7]} 21. Qh5 {[%clk 0:01:57.7]} 21... h6 {[%clk 0:02:28.8]} 22.
Qg6 {[%clk 0:01:48.2]} 22... Kf8 {[%clk 0:02:29.7]} 23. g4 {[%clk 0:01:42.2]}
23... Qd5 {[%clk 0:02:24]} 24. g5 {[%clk 0:01:37]} 24... Rc8 {[%clk 0:02:12.8]}
25. gxh6 {[%clk 0:01:35.7]} 25... gxh6 {[%clk 0:02:14.7]} 26. Rxh6 {[%clk
0:01:31.4]} 26... Rc2 {[%clk 0:02:14.3]} 27. Qf6+ {[%clk 0:01:23.2]} 27... Ke8
{[%clk 0:02:14.7]} 28. Rh8+ {[%clk 0:01:24.1]} 28... Kd7 {[%clk 0:02:16.3]} 29.
Rd8+ {[%clk 0:01:21.5]} 1-0

[Event "*** Titled Tuesday 3|2 Blitz"]
[Site "Chess.com"]
[Date "2016.09.06"]
[Round "2"]
[White "ruifeng"]
[Black "danir29"]
[Result "0-1"]
[WhiteElo "2335"]
[BlackElo "2418"]
[TimeControl "180+2"]
[EndTime "17:19:34 PDT"]
[Termination "danir29 won by resignation"]

1. e4 {[%clk 0:03:01.9]} 1... e5 {[%clk 0:03:00.5]} 2. Nf3 {[%clk 0:02:55.1]}
2... Nc6 {[%clk 0:03:01.3]} 3. g3 {[%clk 0:02:56.2]} 3... Bc5 {[%clk 0:03:01.3]}
4. Bg2 {[%clk 0:02:56.9]} 4... Nf6 {[%clk 0:03:02.6]} 5. d3 {[%clk 0:02:58.3]}
5... a6 {[%clk 0:03:03.5]} 6. c3 {[%clk 0:02:59.4]} 6... d6 {[%clk 0:03:04.2]}
7. O-O {[%clk 0:02:59.4]} 7... O-O {[%clk 0:03:05.4]} 8. a4 {[%clk 0:03:00.3]}
8... h6 {[%clk 0:03:06.4]} 9. Nbd2 {[%clk 0:02:58.3]} 9... Re8 {[%clk
0:03:04.7]} 10. Nc4 {[%clk 0:02:56.4]} 10... Ba7 {[%clk 0:03:00.5]} 11. Ne3
{[%clk 0:02:51]} 11... Be6 {[%clk 0:02:53.9]} 12. h3 {[%clk 0:02:49.6]} 12...
Qd7 {[%clk 0:02:54.5]} 13. g4 {[%clk 0:02:37.3]} 13... d5 {[%clk 0:02:49.6]} 14.
Qc2 {[%clk 0:02:33.8]} 14... d4 {[%clk 0:02:43.8]} 15. Nf5 {[%clk 0:02:32.8]}
15... Rad8 {[%clk 0:02:36.6]} 16. c4 {[%clk 0:02:33.3]} 16... Nh7 {[%clk
0:02:27.6]} 17. N3h4 {[%clk 0:02:29.3]} 17... Bc5 {[%clk 0:02:21.7]} 18. Ng3
{[%clk 0:02:14.7]} 18... Be7 {[%clk 0:02:18.8]} 19. Nhf5 {[%clk 0:02:15.7]}
19... Bg5 {[%clk 0:02:19.7]} 20. h4 {[%clk 0:02:15.6]} 20... Bxc1 {[%clk
0:02:13.7]} 21. Qxc1 {[%clk 0:02:16.7]} 21... a5 {[%clk 0:02:10.7]} 22. Nh5
{[%clk 0:02:02.5]} 22... Bxf5 {[%clk 0:01:59.9]} 23. exf5 {[%clk 0:02:02.4]}
23... Qe7 {[%clk 0:01:47.6]} 24. Bf3 {[%clk 0:01:44.8]} 24... Qxh4 {[%clk
0:01:46.1]} 25. Kg2 {[%clk 0:01:46]} 25... e4 {[%clk 0:01:41.2]} 26. dxe4 {[%clk
0:01:40.1]} 26... Ne5 {[%clk 0:01:38.6]} 27. Rh1 {[%clk 0:01:29.6]} 27... Qg5
{[%clk 0:01:37.3]} 28. Ng3 {[%clk 0:01:21.4]} 28... d3 {[%clk 0:01:34.6]} 29.
Nf1 {[%clk 0:01:01.3]} 29... d2 {[%clk 0:01:31.7]} 30. Qd1 {[%clk 0:00:59.5]}
30... Qf4 {[%clk 0:01:27.3]} 31. Rh5 {[%clk 0:00:46.8]} 31... Ng5 {[%clk
0:01:22.5]} 32. Rxg5 {[%clk 0:00:47.8]} 32... hxg5 {[%clk 0:01:23.7]} 33. Ne3
{[%clk 0:00:47.7]} 33... Rd3 {[%clk 0:01:20.6]} 34. Ra3 {[%clk 0:00:46]} 34...
Red8 {[%clk 0:01:14.4]} 0-1

[Event "*** Titled Tuesday 3|2 Blitz"]
[Site "Chess.com"]
[Date "2016.09.06"]
[Round "2"]
[White "rozabaku"]
[Black "ItalianMachine"]
[Result "0-1"]
[WhiteElo "2202"]
[BlackElo "2333"]
[TimeControl "180+2"]
[EndTime "17:21:02 PDT"]
[Termination "ItalianMachine won by checkmate"]

1. d4 {[%clk 0:01:57]} 1... Nf6 {[%clk 0:02:55.8]} 2. c4 {[%clk 0:01:57.5]} 2...
e6 {[%clk 0:02:55.2]} 3. Nc3 {[%clk 0:01:59.4]} 3... d5 {[%clk 0:02:54.2]} 4.
Bg5 {[%clk 0:01:59.3]} 4... Be7 {[%clk 0:02:54.5]} 5. e3 {[%clk 0:02:00.6]} 5...
O-O {[%clk 0:02:54.2]} 6. Nf3 {[%clk 0:02:01.8]} 6... b6 {[%clk 0:02:54.9]} 7.
Qc2 {[%clk 0:02:02.8]} 7... Bb7 {[%clk 0:02:56.3]} 8. Be2 {[%clk 0:02:04]} 8...
Nbd7 {[%clk 0:02:57.9]} 9. O-O {[%clk 0:02:05]} 9... c5 {[%clk 0:02:59.5]} 10.
Rfd1 {[%clk 0:02:05.5]} 10... cxd4 {[%clk 0:02:55.7]} 11. Rxd4 {[%clk
0:02:04.4]} 11... h6 {[%clk 0:02:50.6]} 12. Bh4 {[%clk 0:02:04.9]} 12... Rc8
{[%clk 0:02:23.5]} 13. Rad1 {[%clk 0:02:04.8]} 13... a6 {[%clk 0:01:43.8]} 14.
Qb1 {[%clk 0:02:04.1]} 14... Qc7 {[%clk 0:01:40.1]} 15. cxd5 {[%clk 0:01:59]}
15... exd5 {[%clk 0:01:40.8]} 16. Bg3 {[%clk 0:01:49.6]} 16... Qc5 {[%clk
0:01:31.4]} 17. Na4 {[%clk 0:01:42.7]} 17... Qa5 {[%clk 0:01:30]} 18. a3 {[%clk
0:01:40.3]} 18... b5 {[%clk 0:01:29.3]} 19. Nc3 {[%clk 0:01:32.7]} 19... Bxa3
{[%clk 0:01:30.2]} 20. Nxb5 {[%clk 0:01:17.3]} 20... axb5 {[%clk 0:01:24.4]} 21.
bxa3 {[%clk 0:01:18]} 21... Ne4 {[%clk 0:01:23.4]} 22. Qxb5 {[%clk 0:01:06.6]}
22... Qxb5 {[%clk 0:01:24.2]} 23. Bxb5 {[%clk 0:01:08.5]} 23... Ndf6 {[%clk
0:01:15.3]} 24. a4 {[%clk 0:01:03.3]} 24... Nc3 {[%clk 0:01:12.9]} 25. Ra1
{[%clk 0:01:04.2]} 25... Nxb5 {[%clk 0:01:08.8]} 26. axb5 {[%clk 0:01:05]} 26...
Ne4 {[%clk 0:01:10.5]} 27. Nd2 {[%clk 0:01:02.4]} 27... Nc3 {[%clk 0:01:08.8]}
28. b6 {[%clk 0:00:55.5]} 28... Ne2+ {[%clk 0:01:09.5]} 29. Kf1 {[%clk
0:00:55.5]} 29... Nxd4 {[%clk 0:01:11.4]} 30. exd4 {[%clk 0:00:57.4]} 30... Ra8
{[%clk 0:01:12.7]} 31. Rc1 {[%clk 0:00:56.6]} 31... Rfc8 {[%clk 0:01:13.6]} 32.
Bc7 {[%clk 0:00:57.5]} 32... Ra4 {[%clk 0:01:11.4]} 33. Nb3 {[%clk 0:00:57.8]}
33... Rb4 {[%clk 0:01:04.5]} 34. Nc5 {[%clk 0:00:37.9]} 34... Bc6 {[%clk
0:01:05.4]} 35. Nd3 {[%clk 0:00:35.9]} 35... Bb5 {[%clk 0:01:02.7]} 36. Ke2
{[%clk 0:00:33.5]} 36... Rb3 {[%clk 0:01:03.5]} 37. Rd1 {[%clk 0:00:29.4]} 37...
Re8+ {[%clk 0:00:59.7]} 38. Kf3 {[%clk 0:00:28.4]} 38... Bxd3 {[%clk 0:00:58.9]}
39. Rd2 {[%clk 0:00:22.2]} 39... Ba6+ {[%clk 0:00:57.5]} 40. Kf4 {[%clk
0:00:22.6]} 40... Re4+ {[%clk 0:00:58.4]} 41. Kf5 {[%clk 0:00:23.3]} 41... g6+
{[%clk 0:00:59.1]} 42. Kf6 {[%clk 0:00:24]} 42... Re6# {[%clk 0:01:00.2]} 0-1

[Event "*** Titled Tuesday 3|2 Blitz"]
[Site "Chess.com"]
[Date "2016.09.06"]
[Round "2"]
[White "MattyDPerrine"]
[Black "FearlessKing64"]
[Result "0-1"]
[WhiteElo "2201"]
[BlackElo "2312"]
[TimeControl "180+2"]
[EndTime "17:21:02 PDT"]
[Termination "FearlessKing64 won on time"]

1. d4 {[%clk 0:03:01.9]} 1... Nf6 {[%clk 0:03:00.5]} 2. c4 {[%clk 0:03:02.8]}
2... g6 {[%clk 0:03:01.9]} 3. Nf3 {[%clk 0:03:03.8]} 3... Bg7 {[%clk 0:03:03.2]}
4. g3 {[%clk 0:03:05.5]} 4... d5 {[%clk 0:03:04.5]} 5. Bg2 {[%clk 0:03:07]} 5...
dxc4 {[%clk 0:03:05.8]} 6. O-O {[%clk 0:03:08.4]} 6... O-O {[%clk 0:03:06.9]} 7.
Na3 {[%clk 0:03:10]} 7... c3 {[%clk 0:03:08.3]} 8. bxc3 {[%clk 0:03:11.9]} 8...
c5 {[%clk 0:03:09.4]} 9. e3 {[%clk 0:03:13.5]} 9... Nc6 {[%clk 0:03:00.3]} 10.
Rb1 {[%clk 0:03:13.8]} 10... cxd4 {[%clk 0:02:58.6]} 11. cxd4 {[%clk 0:03:11.1]}
11... Rb8 {[%clk 0:02:53.3]} 12. Nd2 {[%clk 0:02:31.1]} 12... Be6 {[%clk
0:02:48.2]} 13. Nac4 {[%clk 0:01:59]} 13... Nd5 {[%clk 0:02:10.5]} 14. Bb2
{[%clk 0:01:32.1]} 14... Ndb4 {[%clk 0:02:10.1]} 15. a4 {[%clk 0:01:24.6]} 15...
Qd7 {[%clk 0:01:52.4]} 16. Ba3 {[%clk 0:01:13.8]} 16... Nd5 {[%clk 0:01:34.1]}
17. Rc1 {[%clk 0:01:13.4]} 17... Bh3 {[%clk 0:01:25]} 18. Ne4 {[%clk 0:01:11.8]}
18... Bxg2 {[%clk 0:01:23.9]} 19. Kxg2 {[%clk 0:01:13.6]} 19... b6 {[%clk
0:01:13.9]} 20. Qf3 {[%clk 0:01:05.7]} 20... Rbc8 {[%clk 0:01:08.1]} 21. Ned6
{[%clk 0:00:57.8]} 21... Nxe3+ {[%clk 0:00:59.3]} 22. fxe3 {[%clk 0:00:58.4]}
22... exd6 {[%clk 0:01:00.8]} 23. Nxd6 {[%clk 0:00:58.2]} 23... Nxd4 {[%clk
0:00:30.2]} 24. exd4 {[%clk 0:00:56.1]} 24... Rxc1 {[%clk 0:00:30.2]} 25. Rxc1
{[%clk 0:00:55.2]} 25... Qxa4 {[%clk 0:00:27.4]} 26. Rc7 {[%clk 0:00:36.8]}
26... Qxd4 {[%clk 0:00:21.4]} 27. Rxf7 {[%clk 0:00:11.5]} 27... Qd2+ {[%clk
0:00:21.8]} 28. Kh3 {[%clk 0:00:09.6]} 28... Qh6+ {[%clk 0:00:21.7]} 29. Kg2
{[%clk 0:00:10.4]} 29... Qd2+ {[%clk 0:00:21.2]} 30. Kf1 {[%clk 0:00:08.7]}
30... Rd8 {[%clk 0:00:12.3]} 0-1

[Event "*** Titled Tuesday 3|2 Blitz"]
[Site "Chess.com"]
[Date "2016.09.06"]
[Round "2"]
[White "Evgeny_Levin"]
[Black "lionheart95"]
[Result "1-0"]
[WhiteElo "2648"]
[BlackElo "2442"]
[TimeControl "180+2"]
[EndTime "17:21:06 PDT"]
[Termination "Evgeny_Levin won by resignation"]

1. c4 {[%clk 0:03:02]} 1... Nf6 {[%clk 0:03:00.2]} 2. Nc3 {[%clk 0:03:02.7]}
2... g6 {[%clk 0:03:00.1]} 3. e4 {[%clk 0:03:03.4]} 3... d6 {[%clk 0:03:00.8]}
4. d4 {[%clk 0:03:04.7]} 4... Bg7 {[%clk 0:03:01.6]} 5. Nf3 {[%clk 0:03:05.4]}
5... O-O {[%clk 0:03:01.4]} 6. Be2 {[%clk 0:03:06.3]} 6... Bg4 {[%clk
0:03:02.1]} 7. Be3 {[%clk 0:03:06.4]} 7... Nfd7 {[%clk 0:03:02.7]} 8. Rc1 {[%clk
0:03:07.3]} 8... e5 {[%clk 0:02:56.5]} 9. d5 {[%clk 0:03:07.5]} 9... a5 {[%clk
0:02:54.8]} 10. Ng1 {[%clk 0:03:00.5]} 10... Bxe2 {[%clk 0:02:53.1]} 11. Ngxe2
{[%clk 0:03:02.4]} 11... Na6 {[%clk 0:02:53.3]} 12. O-O {[%clk 0:03:01.9]} 12...
f5 {[%clk 0:02:51.4]} 13. f3 {[%clk 0:03:02.5]} 13... f4 {[%clk 0:02:52.4]} 14.
Bf2 {[%clk 0:03:03.4]} 14... Nac5 {[%clk 0:02:47.4]} 15. b3 {[%clk 0:03:00.8]}
15... g5 {[%clk 0:02:47.2]} 16. a3 {[%clk 0:02:51.7]} 16... Na6 {[%clk
0:02:45.7]} 17. Rb1 {[%clk 0:02:51.1]} 17... Rf6 {[%clk 0:02:46.1]} 18. g4
{[%clk 0:02:33.8]} 18... h5 {[%clk 0:02:42.7]} 19. h3 {[%clk 0:02:32.6]} 19...
Rh6 {[%clk 0:02:42]} 20. Kg2 {[%clk 0:02:32.3]} 20... Kf7 {[%clk 0:02:40.4]} 21.
Rh1 {[%clk 0:02:27.6]} 21... Bf6 {[%clk 0:02:01.8]} 22. b4 {[%clk 0:02:21.1]}
22... axb4 {[%clk 0:02:02.6]} 23. axb4 {[%clk 0:02:23]} 23... Be7 {[%clk
0:02:03.8]} 24. Qb3 {[%clk 0:02:21]} 24... Qh8 {[%clk 0:02:02.3]} 25. c5 {[%clk
0:02:19.1]} 25... Qh7 {[%clk 0:02:02.3]} 26. gxh5 {[%clk 0:01:53]} 26... Rh8
{[%clk 0:01:39.9]} 27. c6 {[%clk 0:01:49]} 27... Nf6 {[%clk 0:01:40.6]} 28. b5
{[%clk 0:01:47.7]} 28... Nb8 {[%clk 0:01:39.2]} 29. b6 {[%clk 0:01:42.6]} 29...
cxb6 {[%clk 0:01:38.1]} 30. c7 {[%clk 0:01:27.2]} 30... Nbd7 {[%clk 0:01:34.6]}
31. Qc4 {[%clk 0:01:27.1]} 31... Nc5 {[%clk 0:01:30.2]} 32. Bxc5 {[%clk
0:01:22.4]} 32... bxc5 {[%clk 0:01:29.2]} 33. Rxb7 {[%clk 0:01:23.7]} 33... Rxh5
{[%clk 0:01:30]} 34. Rb8 {[%clk 0:01:08]} 34... g4 {[%clk 0:01:26.1]} 35. Ng1
{[%clk 0:01:01.3]} 35... gxh3+ {[%clk 0:01:17.5]} 36. Kf1 {[%clk 0:01:01.9]}
36... h2 {[%clk 0:01:16.2]} 37. Rxh8 {[%clk 0:00:51.3]} 37... hxg1=Q+ {[%clk
0:01:13.8]} 38. Rxg1 {[%clk 0:00:51.5]} 38... Qxh8 {[%clk 0:01:13.8]} 39. Qa6
{[%clk 0:00:49.1]} 39... Rh1 {[%clk 0:00:24.7]} 40. c8=Q {[%clk 0:00:47.2]}
40... Qh2 {[%clk 0:00:25.9]} 41. Qe6+ {[%clk 0:00:46.3]} 41... Kf8 {[%clk
0:00:22.9]} 42. Qac8+ {[%clk 0:00:47.5]} 42... Ne8 {[%clk 0:00:23.5]} 43. Qf5+
{[%clk 0:00:47.6]} 1-0

[Event "*** Titled Tuesday 3|2 Blitz"]
[Site "Chess.com"]
[Date "2016.09.06"]
[Round "2"]
[White "TrickyTrapChess"]
[Black "cheese111"]
[Result "1-0"]
[WhiteElo "2126"]
[BlackElo "2231"]
[TimeControl "180+2"]
[EndTime "17:21:08 PDT"]
[Termination "TrickyTrapChess won by checkmate"]

1. d4 {[%clk 0:03:00.7]} 1... Nf6 {[%clk 0:02:59.2]} 2. Nc3 {[%clk 0:02:57.8]}
2... d5 {[%clk 0:02:59.5]} 3. Bf4 {[%clk 0:02:56.6]} 3... Bf5 {[%clk 0:02:58.7]}
4. e3 {[%clk 0:02:42.6]} 4... e6 {[%clk 0:02:58.7]} 5. Bd3 {[%clk 0:02:43.5]}
5... Bxd3 {[%clk 0:02:58.1]} 6. Qxd3 {[%clk 0:02:45.4]} 6... c6 {[%clk
0:02:53.5]} 7. f3 {[%clk 0:02:40.5]} 7... Nbd7 {[%clk 0:02:52.8]} 8. Nge2 {[%clk
0:02:33.3]} 8... Qb6 {[%clk 0:02:44.9]} 9. O-O-O {[%clk 0:02:21.8]} 9... c5
{[%clk 0:02:29.2]} 10. e4 {[%clk 0:02:13]} 10... cxd4 {[%clk 0:02:05.3]} 11. Nb5
{[%clk 0:01:45.5]} 11... dxe4 {[%clk 0:01:46.6]} 12. Qc4 {[%clk 0:01:32.2]}
12... Nd5 {[%clk 0:00:39.7]} 13. fxe4 {[%clk 0:01:15.7]} 13... Nxf4 {[%clk
0:00:38.9]} 14. Nxf4 {[%clk 0:00:53.7]} 14... Bc5 {[%clk 0:00:26]} 15. Nh5
{[%clk 0:00:27.5]} 15... O-O {[%clk 0:00:19.6]} 16. Nxd4 {[%clk 0:00:27.4]}
16... Ne5 {[%clk 0:00:18.6]} 17. Qc3 {[%clk 0:00:24.7]} 17... Rac8 {[%clk
0:00:18.8]} 18. Qg3 {[%clk 0:00:23.4]} 18... Ng6 {[%clk 0:00:18]} 19. Nb3 {[%clk
0:00:24.3]} 19... Be7 {[%clk 0:00:13.4]} 20. Kb1 {[%clk 0:00:25.1]} 20... a5
{[%clk 0:00:14]} 21. a4 {[%clk 0:00:25.5]} 21... Qb4 {[%clk 0:00:13.5]} 22. Rd7
{[%clk 0:00:26.2]} 22... Rfd8 {[%clk 0:00:12.7]} 23. Rhd1 {[%clk 0:00:26.1]}
23... Qc4 {[%clk 0:00:12.3]} 24. Rxd8+ {[%clk 0:00:18.4]} 24... Bxd8 {[%clk
0:00:13.3]} 25. Qd3 {[%clk 0:00:17.9]} 25... Qxa4 {[%clk 0:00:09.4]} 26. Nf4
{[%clk 0:00:14.5]} 26... Qc6 {[%clk 0:00:04.6]} 27. Nxg6 {[%clk 0:00:12.5]}
27... hxg6 {[%clk 0:00:06.5]} 28. Nd4 {[%clk 0:00:12]} 28... Qc5 {[%clk
0:00:05.6]} 29. Nf3 {[%clk 0:00:12.4]} 29... a4 {[%clk 0:00:06.1]} 30. h4 {[%clk
0:00:12.7]} 30... Bf6 {[%clk 0:00:06.1]} 31. e5 {[%clk 0:00:09.4]} 31... Bxe5
{[%clk 0:00:06.1]} 32. Qd8+ {[%clk 0:00:10.4]} 32... Rxd8 {[%clk 0:00:06.4]} 33.
Rxd8+ {[%clk 0:00:11.7]} 33... Kh7 {[%clk 0:00:07.9]} 34. Ng5+ {[%clk
0:00:12.3]} 34... Kh6 {[%clk 0:00:09.2]} 35. Rh8# {[%clk 0:00:13.7]} 1-0